[Event "Romania GP Final-Prel 2024"]
[Site "Alba Iulia"]
[Date "2024.11.25"]
[Round "2.2"]
[White "Kozak, Adam"]
[Black "Stanciu, Alexandru-Ovidiu"]
[Result "1/2-1/2"]
[ECO "B10"]
[WhiteElo "2591"]
[BlackElo "2337"]
[Annotator "RC"]
[PlyCount "133"]
[EventDate "2024.11.22"]
[EventType "tourn"]
[EventCountry "ROU"]
[SourceTitle "playchess.com"]
[Source "ChessBase"]
[SourceQuality "1"]
[TimeControl "900+5"]

1. e4 {[%emt 0:00:03]} c6 {[%emt 0:00:03]} 2. Nf3 {[%emt 0:00:05]} d5 {[%emt 0:00:03]} 3. exd5 {[%emt 0:00:03]} cxd5 {[%emt 0:00:03]} 4. Ne5 {[%emt 0:00:01]} Nc6 {[%emt 0:01:28]} 5. d4 {[%emt 0:00:58]} a6 {[%emt 0:00:59]} 6. c4 {[%emt 0:00:02]} g6 {[%emt 0:01:26]} 7. Be3 {[%emt 0:02:30]} Bg7 {[%emt 0:01:37]} 8. Nc3 {[%emt 0:04:32]} Nf6 {[%emt 0:02:23]} 9. cxd5 {[%emt 0:00:49]} Nxd5 {[%emt 0:00:19]} 10. Nxd5 {[%emt 0:00:27]} Qxd5 {[%emt 0:00:06]} 11. Nxc6 {[%emt 0:01:44]} Qxc6 {[%emt 0:00:55]} 12. Rc1 {[%emt 0:00:24]} Qb6 {[%emt 0:00:28]} 13. Qb3 {[%emt 0:00:41]} Qxb3 {[%emt 0:01:51]} 14. axb3 {[%emt 0:00:01]} O-O {[%emt 0:00:08]} 15. Rc7 {[%emt 0:01:59]} e5 {[%emt 0:01:39]} 16. d5 {[%emt 0:00:02]} Rd8 {[%emt 0:00:03]} 17. Bd3 {[%emt 0:01:22]} Rxd5 {[%emt 0:00:14]} 18. Be4 {[%emt 0:00:01]} Rd7 {[%emt 0:01:09]} 19. Rxd7 {[%emt 0:00:02]} Bxd7 {[%emt 0:00:02]} 20. Bxb7 {[%emt 0:00:02]} Rb8 {[%emt 0:00:03]} 21. Bd5 {[%emt 0:00:02]} Be6 {[%emt 0:00:34]} 22. Bxe6 {[%emt 0:00:03]} fxe6 {[%emt 0:00:02]} 23. Kd2 {[%emt 0:00:02]} Rxb3 {[%emt 0:00:13]} 24. Kc2 {[%emt 0:00:03]} Rb5 {[%emt 0:00:40]} 25. Rd1 {[%emt 0:00:25]} e4 {[%emt 0:00:04]} 26. Rd8+ {[%emt 0:00:03]} Kf7 {[%emt 0:00:02]} 27. b3 {[%emt 0:00:02]} Rb7 {[%emt 0:00:19]} 28. Rd6 {[%emt 0:00:03]} Rc7+ {[%emt 0:00:03]} 29. Kb1 {[%emt 0:00:06]} a5 {[%emt 0:00:19]} 30. Rd2 {[%emt 0:00:48]} Bf8 {[%emt 0:00:07]} 31. Rd4 {[%emt 0:00:02]} e5 {[%emt 0:00:09]} 32. Rxe4 {[%emt 0:00:02]} Kf6 {[%emt 0:00:03]} 33. Bd2 {[%emt 0:00:08]} Kf5 {[%emt 0:00:03]} 34. Ra4 {[%emt 0:00:10]} Rb7 {[%emt 0:00:08]} 35. Kc2 {[%emt 0:00:02]} Bb4 {[%emt 0:00:02]} 36. Bxb4 {[%emt 0:00:05]} axb4 {[%emt 0:00:02]} 37. Kd3 {[%emt 0:00:03]} Rd7+ {[%emt 0:00:10]} 38. Ke3 {[%emt 0:00:01]} Rb7 {[%emt 0:00:03]} 39. h3 {[%emt 0:00:08]} h5 {[%emt 0:00:03]} 40. g3 {[%emt 0:00:13]} Rb6 {[%emt 0:00:03]} 41. Ke2 {[%emt 0:00:04]} Ke4 {[%emt 0:00:04]} 42. Ra8 {[%emt 0:00:02]} Rc6 {[%emt 0:00:04]} 43. Rb8 {[%emt 0:00:01]} Rc2+ {[%emt 0:00:03]} 44. Kf1 {[%emt 0:00:13]} Kf3 {[%emt 0:00:02]} 45. Rf8+ {[%emt 0:00:01]} Ke4 {[%emt 0:00:02]} 46. Rb8 {[%emt 0:00:08]} Rb2 {[%emt 0:00:17]} 47. Rxb4+ {[%emt 0:00:12]} Kf3 {[%emt 0:00:03]} 48. Ke1 {[%emt 0:00:00]} e4 {[%emt 0:00:10]} 49. Rb6 {[%emt 0:00:00]} Re2+ {[%emt 0:00:05]} 50. Kd1 {[%emt 0:00:02]} Rxf2 {[%emt 0:00:03]} 51. Rf6+ {[%emt 0:00:11]} Kxg3 {[%emt 0:00:11]} 52. Rxg6+ {[%emt 0:00:02]} Kf3 {[%emt 0:00:01]} 53. Rf6+ {[%emt 0:00:09]} Ke3 {[%emt 0:00:02]} 54. Rh6 {[%emt 0:00:03]} Rd2+ {[%emt 0:00:07]} 55. Kc1 {[%emt 0:00:03]} Rd5 {[%emt 0:00:02]} 56. Kc2 {[%emt 0:00:09]} Ke2 {[%emt 0:00:21]} 57. b4 e3 {[%emt 0:00:00]} 58. Re6 {[%emt 0:00:07]} Kf2 {[%emt 0:00:00]} 59. Rf6+ {[%emt 0:00:05]} Ke1 {[%emt 0:00:00]} 60. Re6 {[%emt 0:00:06]} e2 {[%emt 0:00:00]} 61. Re8 {[%emt 0:00:01]} Rd4 {[%emt 0:00:07]} 62. b5 {[%emt 0:00:07]} Rb4 {[%emt 0:00:11]} 63. Re5 {[%emt 0:00:04]} Kf2 {[%emt 0:00:09]} 64. Rf5+ {[%emt 0:00:00]} Ke3 {[%emt 0:00:06]} 65. Re5+ {[%emt 0:00:02]} Kf2 {[%emt 0:00:01]} 66. Rf5+ {[%emt 0:00:01]} Ke3 {[%emt 0:00:06]} 67. Re5+ {[%emt 0:00:01]} 1/2-1/2

[Event "Romania GP Final-Prel 2024"]
[Site "Alba Iulia"]
[Date "2024.11.25"]
[Round "2.3"]
[White "Manolache, Marius"]
[Black "Obada, Ema"]
[Result "1/2-1/2"]
[ECO "D30"]
[WhiteElo "2407"]
[BlackElo "2060"]
[Annotator "RC"]
[PlyCount "79"]
[EventDate "2024.11.22"]
[EventType "tourn"]
[EventCountry "ROU"]
[SourceTitle "playchess.com"]
[Source "ChessBase"]
[SourceQuality "1"]
[TimeControl "900+5"]

1. d4 {[%emt 0:00:04]} e6 {[%emt 0:00:02]} 2. Nf3 {[%emt 0:00:06]} d5 {[%emt 0:00:10]} 3. c4 {[%emt 0:00:01]} a6 {[%emt 0:00:02]} 4. e3 {[%emt 0:00:17]} Nf6 {[%emt 0:00:11]} 5. Nbd2 {[%emt 0:00:15]} b6 {[%emt 0:00:55]} 6. Be2 {[%emt 0:00:55]} Bd6 {[%emt 0:00:13]} 7. b3 {[%emt 0:00:06]} Bb7 {[%emt 0:00:10]} 8. O-O {[%emt 0:00:05]} O-O {[%emt 0:00:02]} 9. Bb2 {[%emt 0:00:02]} Nbd7 {[%emt 0:00:05]} 10. Rc1 {[%emt 0:00:08]} Re8 {[%emt 0:00:25]} 11. Ne5 {[%emt 0:01:01]} c5 {[%emt 0:01:14]} 12. cxd5 {[%emt 0:02:14]} exd5 {[%emt 0:01:04]} 13. f4 {[%emt 0:00:05]} Rc8 {[%emt 0:02:05]} 14. a4 {[%emt 0:00:14]} cxd4 {[%emt 0:00:41]} 15. Rxc8 {[%emt 0:00:31]} Qxc8 {[%emt 0:00:11]} 16. exd4 {[%emt 0:00:03]} Bb4 {[%emt 0:00:18]} 17. Rf3 {[%emt 0:02:17]} Bxd2 {[%emt 0:01:45]} 18. Qxd2 {[%emt 0:00:03]} Ne4 {[%emt 0:00:01]} 19. Qd1 {[%emt 0:01:04]} f6 {[%emt 0:01:26]} 20. Ng4 {[%emt 0:01:08]} Qc7 {[%emt 0:02:01]} 21. Bd3 {[%emt 0:01:09]} Qd6 {[%emt 0:00:34]} 22. Ne3 {[%emt 0:00:18]} Rc8 {[%emt 0:01:25]} 23. Qe1 {[%emt 0:01:10]} Nf8 {[%emt 0:01:08]} 24. f5 {[%emt 0:01:27]} Re8 {[%emt 0:00:21]} 25. Qc1 {[%emt 0:01:21]} Rc8 {[%emt 0:00:22]} 26. Qe1 {[%emt 0:00:09]} Re8 {[%emt 0:00:04]} 27. h4 {[%emt 0:00:08]} Nd7 {[%emt 0:00:08]} 28. g3 {[%emt 0:00:18]} Nb8 {[%emt 0:00:05]} 29. Kh2 {[%emt 0:00:08]} Nc6 {[%emt 0:00:07]} 30. Nxd5 {[%emt 0:00:21]} Nb4 {[%emt 0:00:09]} 31. Nxb4 {[%emt 0:00:06]} Qxb4 {[%emt 0:00:02]} 32. Re3 {[%emt 0:00:02]} Qxb3 {[%emt 0:00:08]} 33. Bxe4 {[%emt 0:00:07]} Qxb2+ {[%emt 0:00:04]} 34. Kh3 {[%emt 0:00:05]} Bxe4 {[%emt 0:00:08]} 35. Rxe4 {[%emt 0:00:01]} Rxe4 {[%emt 0:00:01]} 36. Qxe4 {[%emt 0:00:01]} h6 {[%emt 0:00:02]} 37. Qe8+ {[%emt 0:00:18]} Kh7 {[%emt 0:00:01]} 38. Qg6+ {[%emt 0:00:12]} Kg8 {[%emt 0:00:01]} 39. Qe8+ {[%emt 0:00:01]} Kh7 {[%emt 0:00:01]} 40. Qg6+ {[%emt 0:00:24]} 1/2-1/2

[Event "Romania GP Final-Prel 2024"]
[Site "Alba Iulia"]
[Date "2024.11.25"]
[Round "2.4"]
[White "Gavrilescu, David"]
[Black "Kantor, Gergely"]
[Result "0-1"]
[ECO "C47"]
[WhiteElo "2545"]
[BlackElo "2554"]
[Annotator "RC"]
[PlyCount "90"]
[EventDate "2024.11.22"]
[EventType "tourn"]
[EventCountry "ROU"]
[SourceTitle "playchess.com"]
[Source "ChessBase"]
[SourceQuality "1"]
[TimeControl "900+5"]

1. e4 {[%emt 0:00:03]} e5 {[%emt 0:00:01]} 2. Nf3 {[%emt 0:00:03]} Nc6 {[%emt 0:00:01]} 3. Nc3 {[%emt 0:01:21]} Nf6 {[%emt 0:00:04]} 4. d4 {[%emt 0:00:02]} exd4 {[%emt 0:00:04]} 5. Nxd4 {[%emt 0:00:01]} Bb4 {[%emt 0:00:02]} 6. Nxc6 {[%emt 0:00:02]} bxc6 {[%emt 0:00:01]} 7. Bd3 {[%emt 0:00:02]} O-O {[%emt 0:00:03]} 8. O-O {[%emt 0:00:02]} d5 {[%emt 0:00:01]} 9. exd5 {[%emt 0:00:02]} cxd5 {[%emt 0:00:12]} 10. h3 {[%emt 0:00:11]} c5 {[%emt 0:01:31]} 11. Qf3 {[%emt 0:03:12]} Be6 {[%emt 0:01:18]} 12. Rd1 {[%emt 0:02:46]} h6 {[%emt 0:02:20]} 13. Bf4 {[%emt 0:00:01]} Qe7 {[%emt 0:02:57]} 14. Qg3 {[%emt 0:00:01]} c4 {[%emt 0:01:05]} 15. Be2 {[%emt 0:00:02]} Kh8 {[%emt 0:02:02]} 16. Be5 {[%emt 0:01:07]} Rfd8 {[%emt 0:00:40]} 17. Bf3 {[%emt 0:00:23]} Bd6 {[%emt 0:00:08]} 18. Nb5 {[%emt 0:02:15]} Bxe5 {[%emt 0:00:10]} 19. Qxe5 {[%emt 0:00:02]} Rab8 {[%emt 0:01:02]} 20. Nd4 {[%emt 0:00:40]} Qd6 {[%emt 0:00:03]} 21. Qxd6 {[%emt 0:00:05]} Rxd6 {[%emt 0:00:01]} 22. b3 {[%emt 0:00:01]} Bd7 {[%emt 0:00:13]} 23. Ne2 {[%emt 0:00:56]} Rc8 {[%emt 0:00:42]} 24. Rd2 {[%emt 0:00:43]} Bf5 {[%emt 0:00:25]} 25. Nd4 {[%emt 0:00:40]} Be4 {[%emt 0:00:10]} 26. Rad1 {[%emt 0:00:18]} Ra6 {[%emt 0:00:15]} 27. a4 {[%emt 0:00:11]} Rb6 {[%emt 0:00:16]} 28. Re1 {[%emt 0:00:48]} cxb3 {[%emt 0:00:39]} 29. cxb3 {[%emt 0:00:06]} Bxf3 {[%emt 0:00:38]} 30. gxf3 {[%emt 0:00:01]} Rc7 {[%emt 0:00:07]} 31. Re5 {[%emt 0:00:11]} Rb4 {[%emt 0:00:06]} 32. Kg2 {[%emt 0:00:08]} Kh7 {[%emt 0:00:01]} 33. Rd3 {[%emt 0:00:30]} a6 {[%emt 0:00:04]} 34. f4 {[%emt 0:00:06]} g6 {[%emt 0:00:12]} 35. h4 {[%emt 0:00:04]} Kg7 {[%emt 0:00:09]} 36. Kf3 {[%emt 0:00:08]} Rc1 {[%emt 0:00:09]} 37. f5 {[%emt 0:00:24]} Rh1 {[%emt 0:00:03]} 38. fxg6 {[%emt 0:00:03]} Kxg6 {[%emt 0:00:03]} 39. Kg3 {[%emt 0:00:12]} Nh5+ {[%emt 0:00:05]} 40. Kg4 {[%emt 0:00:07]} Nf6+ {[%emt 0:00:01]} 41. Kg3 {[%emt 0:00:02]} Nh5+ {[%emt 0:00:07]} 42. Kg4 {[%emt 0:00:01]} f5+ {[%emt 0:00:15]} 43. Kf3 {[%emt 0:00:06]} Rh3+ {[%emt 0:00:00]} 44. Kg2 {[%emt 0:00:10]} Nf4+ {[%emt 0:00:02]} 45. Kg1 {[%emt 0:00:03]} Rxd3 {[%emt 0:00:02]} 0-1

[Event "Romania GP Final-Prel 2024"]
[Site "Alba Iulia"]
[Date "2024.11.25"]
[Round "2.5"]
[White "Ghimpu, Samuel-Timotei"]
[Black "Nedelcu, Teodor-Cosmin"]
[Result "1-0"]
[ECO "B45"]
[WhiteElo "2473"]
[BlackElo "2320"]
[Annotator "RC"]
[PlyCount "115"]
[EventDate "2024.11.22"]
[EventType "tourn"]
[EventCountry "ROU"]
[SourceTitle "playchess.com"]
[Source "ChessBase"]
[SourceQuality "1"]
[TimeControl "900+5"]

1. e4 {[%emt 0:00:03]} c5 {[%emt 0:02:16]} 2. Nf3 {[%emt 0:00:06]} e6 {[%emt 0:00:02]} 3. d4 {[%emt 0:00:09]} cxd4 {[%emt 0:00:02]} 4. Nxd4 {[%emt 0:00:02]} Nf6 {[%emt 0:00:01]} 5. Nc3 {[%emt 0:00:25]} Nc6 {[%emt 0:00:02]} 6. a3 {[%emt 0:01:02]} Be7 {[%emt 0:00:42]} 7. Nxc6 {[%emt 0:00:16]} bxc6 {[%emt 0:00:01]} 8. e5 {[%emt 0:00:02]} Nd5 {[%emt 0:00:01]} 9. Qg4 {[%emt 0:00:09]} g6 {[%emt 0:00:20]} 10. Qg3 {[%emt 0:02:14]} Qb6 {[%emt 0:01:45]} 11. Ne4 {[%emt 0:02:23]} Ba6 {[%emt 0:04:02]} 12. Bxa6 {[%emt 0:04:01]} Qxa6 {[%emt 0:00:02]} 13. Bg5 {[%emt 0:00:08]} Qc4 {[%emt 0:03:44]} 14. Qh4 {[%emt 0:00:11]} Kd8 {[%emt 0:00:37]} 15. Bxe7+ {[%emt 0:00:19]} Nxe7 {[%emt 0:00:02]} 16. O-O-O {[%emt 0:00:09]} Qa2 {[%emt 0:01:26]} 17. Ng5 {[%emt 0:04:26]} Ke8 {[%emt 0:01:01]} 18. Qd4 {[%emt 0:00:15]} Nd5 {[%emt 0:00:01]} 19. Ne4 {[%emt 0:00:09]} Rb8 {[%emt 0:00:11]} 20. c4 {[%emt 0:00:01]} Nb6 {[%emt 0:00:17]} 21. Nd6+ {[%emt 0:00:05]} Kf8 {[%emt 0:00:07]} 22. Kc2 {[%emt 0:00:11]} Na4 {[%emt 0:00:03]} 23. Rb1 {[%emt 0:00:00]} Qb3+ {[%emt 0:00:02]} 24. Kc1 {[%emt 0:00:05]} Kg7 {[%emt 0:00:11]} 25. Rd1 {[%emt 0:00:05]} Rhf8 {[%emt 0:00:04]} 26. Rd3 {[%emt 0:00:07]} Nc5 {[%emt 0:00:01]} 27. Rc3 {[%emt 0:00:07]} Qb6 {[%emt 0:00:05]} 28. Qf4 {[%emt 0:00:06]} Nb3+ {[%emt 0:00:08]} 29. Kc2 {[%emt 0:00:02]} f5 {[%emt 0:00:03]} 30. Qe3 {[%emt 0:00:05]} Nd4+ {[%emt 0:00:08]} 31. Kd1 {[%emt 0:00:02]} c5 {[%emt 0:00:02]} 32. b4 {[%emt 0:00:05]} Qc6 {[%emt 0:00:02]} 33. f3 {[%emt 0:00:06]} f4 {[%emt 0:00:11]} 34. Qd3 {[%emt 0:00:05]} Nf5 {[%emt 0:00:06]} 35. b5 {[%emt 0:00:02]} Qc7 {[%emt 0:00:05]} 36. Kc2 {[%emt 0:00:14]} Rb6 {[%emt 0:00:02]} 37. Rd1 {[%emt 0:00:05]} Ne3+ {[%emt 0:00:03]} 38. Kb3 {[%emt 0:00:05]} Nxd1 {[%emt 0:00:04]} 39. Qxd1 {[%emt 0:00:01]} a6 {[%emt 0:00:06]} 40. a4 {[%emt 0:00:01]} axb5 {[%emt 0:00:01]} 41. cxb5 {[%emt 0:00:02]} Ra8 {[%emt 0:00:05]} 42. Rc4 {[%emt 0:00:07]} Rf8 {[%emt 0:00:10]} 43. Qd2 {[%emt 0:00:07]} g5 {[%emt 0:00:08]} 44. Qc3 {[%emt 0:00:03]} Kg8 {[%emt 0:00:04]} 45. Rxc5 {[%emt 0:00:02]} Qb8 {[%emt 0:00:01]} 46. Rc7 {[%emt 0:00:07]} Rd8 {[%emt 0:00:06]} 47. Kb4 {[%emt 0:00:02]} Qa8 {[%emt 0:00:05]} 48. Rc8 {[%emt 0:00:10]} Rxc8 {[%emt 0:00:01]} 49. Qxc8+ {[%emt 0:00:01]} Qxc8 {[%emt 0:00:02]} 50. Nxc8 {[%emt 0:00:00]} Rb8 {[%emt 0:00:01]} 51. Nd6 {[%emt 0:00:03]} Kf8 {[%emt 0:00:03]} 52. a5 {[%emt 0:00:00]} Ke7 {[%emt 0:00:01]} 53. a6 {[%emt 0:00:03]} Ra8 {[%emt 0:00:28]} 54. Ka5 {[%emt 0:00:06]} Kd8 {[%emt 0:00:01]} 55. b6 {[%emt 0:00:01]} Rb8 {[%emt 0:00:02]} 56. a7 {[%emt 0:00:01]} Ra8 {[%emt 0:00:01]} 57. Ka6 {[%emt 0:00:01]} h5 {[%emt 0:00:02]} 58. b7 {[%emt 0:00:01]} 1-0

[Event "Romania GP Final-Prel 2024"]
[Site "Alba Iulia"]
[Date "2024.11.25"]
[Round "2.6"]
[White "Secheres, Adrian-Simion"]
[Black "Cnejev, Vladimir-Alexandru"]
[Result "1/2-1/2"]
[ECO "D37"]
[WhiteElo "2350"]
[BlackElo "2288"]
[Annotator "RC"]
[PlyCount "110"]
[EventDate "2024.11.22"]
[EventType "tourn"]
[EventCountry "ROU"]
[SourceTitle "playchess.com"]
[Source "ChessBase"]
[SourceQuality "1"]
[TimeControl "900+5"]

1. d4 {[%emt 0:00:03]} d5 {[%emt 0:00:02]} 2. c4 {[%emt 0:00:05]} e6 {[%emt 0:00:02]} 3. Nf3 {[%emt 0:00:06]} Nf6 {[%emt 0:00:03]} 4. Nc3 {[%emt 0:00:05]} Be7 {[%emt 0:00:06]} 5. Bf4 {[%emt 0:00:04]} O-O {[%emt 0:00:04]} 6. e3 {[%emt 0:00:10]} c5 {[%emt 0:00:01]} 7. dxc5 {[%emt 0:00:18]} Bxc5 {[%emt 0:00:13]} 8. Qc2 {[%emt 0:00:15]} Nc6 {[%emt 0:00:23]} 9. a3 {[%emt 0:00:05]} Re8 {[%emt 0:00:18]} 10. Rd1 {[%emt 0:01:00]} e5 {[%emt 0:00:04]} 11. Bg5 {[%emt 0:00:07]} d4 {[%emt 0:00:01]} 12. Nd5 {[%emt 0:01:27]} Be7 {[%emt 0:00:20]} 13. Nxe7+ {[%emt 0:01:51]} Qxe7 {[%emt 0:00:02]} 14. e4 {[%emt 0:04:24]} h6 {[%emt 0:01:20]} 15. Bc1 {[%emt 0:00:32]} a5 {[%emt 0:00:18]} 16. b3 {[%emt 0:00:02]} b6 {[%emt 0:00:15]} 17. Be2 {[%emt 0:00:08]} Bb7 {[%emt 0:00:46]} 18. O-O {[%emt 0:00:06]} Rac8 {[%emt 0:00:51]} 19. Nh4 {[%emt 0:00:23]} Qe6 {[%emt 0:00:45]} 20. Bd3 {[%emt 0:00:21]} Ne7 {[%emt 0:01:21]} 21. Qe2 {[%emt 0:00:10]} g5 {[%emt 0:01:11]} 22. Nf3 {[%emt 0:00:26]} Ng6 {[%emt 0:00:11]} 23. g3 {[%emt 0:00:15]} Qh3 {[%emt 0:02:33]} 24. Ne1 {[%emt 0:00:30]} Rc7 {[%emt 0:00:40]} 25. f3 {[%emt 0:00:12]} Qe6 {[%emt 0:00:54]} 26. Bd2 {[%emt 0:00:13]} Rec8 {[%emt 0:00:42]} 27. b4 {[%emt 0:00:28]} Ba6 {[%emt 0:00:31]} 28. c5 {[%emt 0:00:09]} Bxd3 {[%emt 0:00:41]} 29. Nxd3 {[%emt 0:00:03]} axb4 {[%emt 0:00:17]} 30. axb4 {[%emt 0:00:06]} Nd7 {[%emt 0:01:04]} 31. cxb6 {[%emt 0:00:17]} Qxb6 {[%emt 0:00:01]} 32. Rc1 {[%emt 0:00:30]} Qb5 {[%emt 0:01:01]} 33. Kf2 {[%emt 0:00:57]} Kf8 {[%emt 0:00:38]} 34. Rxc7 {[%emt 0:00:38]} Rxc7 {[%emt 0:00:01]} 35. Rc1 {[%emt 0:00:01]} Rc6 {[%emt 0:00:12]} 36. Rxc6 {[%emt 0:00:53]} Qxc6 {[%emt 0:00:01]} 37. Qd1 {[%emt 0:00:21]} Qc4 {[%emt 0:00:05]} 38. Ke2 {[%emt 0:00:03]} Nb6 {[%emt 0:00:10]} 39. Qc1 {[%emt 0:00:04]} Ne7 {[%emt 0:00:05]} 40. Qxc4 {[%emt 0:00:11]} Nxc4 {[%emt 0:00:01]} 41. b5 {[%emt 0:00:03]} Ke8 {[%emt 0:00:07]} 42. Bb4 {[%emt 0:00:02]} Nc8 {[%emt 0:00:07]} 43. f4 {[%emt 0:00:03]} gxf4 {[%emt 0:00:05]} 44. gxf4 {[%emt 0:00:02]} exf4 {[%emt 0:00:06]} 45. Nxf4 {[%emt 0:00:02]} N4d6 {[%emt 0:00:04]} 46. b6 {[%emt 0:00:04]} Kd7 {[%emt 0:00:05]} 47. Bxd6 {[%emt 0:00:03]} Nxd6 {[%emt 0:00:01]} 48. Kd3 {[%emt 0:00:03]} Kc6 {[%emt 0:00:08]} 49. Nd5 {[%emt 0:00:07]} f5 {[%emt 0:00:06]} 50. Ne7+ {[%emt 0:00:02]} Kxb6 {[%emt 0:00:02]} 51. Nxf5 {[%emt 0:00:01]} Nxf5 52. exf5 {[%emt 0:00:01]} Kc5 {[%emt 0:00:07]} 53. Ke4 {[%emt 0:00:09]} d3 {[%emt 0:00:03]} 54. Kxd3 {[%emt 0:00:07]} Kd5 {[%emt 0:00:01]} 55. Ke3 {[%emt 0:00:02]} Ke5 {[%emt 0:00:24]} 1/2-1/2

[Event "Romania GP Final-Prel 2024"]
[Site "Alba Iulia"]
[Date "2024.11.25"]
[Round "2.7"]
[White "Sachilaru, Alexandru"]
[Black "Lupulescu, Constantin"]
[Result "0-1"]
[ECO "B30"]
[WhiteElo "2305"]
[BlackElo "2591"]
[Annotator "RC"]
[PlyCount "96"]
[EventDate "2024.11.22"]
[EventType "tourn"]
[EventCountry "ROU"]
[SourceTitle "playchess.com"]
[Source "ChessBase"]
[SourceQuality "1"]
[TimeControl "900+5"]

1. e4 {[%emt 0:00:01]} c5 {[%emt 0:00:01]} 2. Nf3 {[%emt 0:00:02]} Nc6 {[%emt 0:00:01]} 3. Bb5 {[%emt 0:00:03]} Nf6 {[%emt 0:00:01]} 4. e5 {[%emt 0:00:13]} Nd5 {[%emt 0:00:05]} 5. O-O {[%emt 0:00:21]} g6 {[%emt 0:01:02]} 6. Nc3 {[%emt 0:00:06]} Nc7 {[%emt 0:00:02]} 7. Bxc6 {[%emt 0:00:02]} dxc6 {[%emt 0:00:03]} 8. h3 {[%emt 0:00:06]} Bg7 {[%emt 0:00:06]} 9. d3 {[%emt 0:00:03]} Ne6 {[%emt 0:00:10]} 10. Re1 {[%emt 0:00:24]} h6 {[%emt 0:00:24]} 11. Ne4 {[%emt 0:00:34]} b6 {[%emt 0:00:19]} 12. a4 {[%emt 0:00:17]} a5 {[%emt 0:00:02]} 13. b3 {[%emt 0:02:46]} Qc7 {[%emt 0:01:47]} 14. Bb2 {[%emt 0:00:07]} O-O {[%emt 0:01:51]} 15. Qd2 {[%emt 0:00:55]} f5 {[%emt 0:01:35]} 16. exf6 {[%emt 0:02:28]} exf6 {[%emt 0:00:02]} 17. Ng3 {[%emt 0:01:42]} Bd7 {[%emt 0:00:31]} 18. Re2 {[%emt 0:00:24]} Rae8 {[%emt 0:00:04]} 19. Rae1 {[%emt 0:00:14]} Kh7 {[%emt 0:01:06]} 20. d4 {[%emt 0:02:17]} cxd4 {[%emt 0:01:24]} 21. Nxd4 {[%emt 0:00:04]} Nxd4 {[%emt 0:00:16]} 22. Qxd4 {[%emt 0:00:34]} c5 {[%emt 0:00:30]} 23. Qc3 {[%emt 0:00:58]} Rxe2 {[%emt 0:00:38]} 24. Rxe2 {[%emt 0:00:01]} Bc6 {[%emt 0:00:31]} 25. Qe1 {[%emt 0:00:54]} Rf7 {[%emt 0:00:14]} 26. Ne4 {[%emt 0:00:19]} Qd8 {[%emt 0:01:24]} 27. Rd2 {[%emt 0:00:33]} Qe7 {[%emt 0:00:06]} 28. Re2 {[%emt 0:00:05]} Qf8 {[%emt 0:00:23]} 29. h4 {[%emt 0:00:38]} h5 {[%emt 0:01:47]} 30. Re3 {[%emt 0:00:12]} Rd7 {[%emt 0:00:34]} 31. Rd3 {[%emt 0:00:05]} Rxd3 {[%emt 0:00:07]} 32. cxd3 {[%emt 0:00:01]} Bd5 {[%emt 0:00:12]} 33. Qc3 {[%emt 0:00:05]} f5 {[%emt 0:00:08]} 34. Qxg7+ {[%emt 0:00:06]} Qxg7 {[%emt 0:00:02]} 35. Bxg7 {[%emt 0:00:01]} Kxg7 {[%emt 0:00:12]} 36. Nd2 {[%emt 0:00:02]} f4 {[%emt 0:00:01]} 37. g3 {[%emt 0:00:12]} Kf6 {[%emt 0:00:06]} 38. Kh2 {[%emt 0:00:11]} Ke5 {[%emt 0:00:03]} 39. Nc4+ {[%emt 0:00:07]} Bxc4 {[%emt 0:00:05]} 40. dxc4 {[%emt 0:00:01]} f3 {[%emt 0:00:05]} 41. Kh3 {[%emt 0:00:07]} Kf5 {[%emt 0:00:01]} 42. g4+ {[%emt 0:00:05]} Kf4 {[%emt 0:00:01]} 43. g5 {[%emt 0:00:04]} Kf5 {[%emt 0:00:01]} 44. Kg3 {[%emt 0:00:03]} Ke4 {[%emt 0:00:01]} 45. Kh2 {[%emt 0:00:02]} Kd3 {[%emt 0:00:04]} 46. Kh3 {[%emt 0:00:01]} Kd2 {[%emt 0:00:01]} 47. Kh2 {[%emt 0:00:03]} Ke1 {[%emt 0:00:02]} 48. Kg3 {[%emt 0:00:02]} Ke2 {[%emt 0:00:01]} 0-1

[Event "Romania GP Final-Prel 2024"]
[Site "Alba Iulia"]
[Date "2024.11.25"]
[Round "3.1"]
[White "Dragomirescu, Angela"]
[Black "Kozak, Adam"]
[Result "0-1"]
[ECO "A04"]
[WhiteElo "2060"]
[BlackElo "2591"]
[Annotator "RC"]
[PlyCount "77"]
[EventDate "2024.11.22"]
[EventType "tourn"]
[EventCountry "ROU"]
[SourceTitle "playchess.com"]
[Source "ChessBase"]
[SourceQuality "1"]
[TimeControl "900+5"]

1. e4 {[%emt 0:00:03]} c5 {[%emt 0:00:01]} 2. Nf3 {[%emt 0:00:01]} d6 {[%emt 0:00:02]} 3. d3 {[%emt 0:00:01]} Nc6 {[%emt 0:00:04]} 4. Nbd2 {[%emt 0:00:03]} e5 {[%emt 0:00:02]} 5. g3 {[%emt 0:00:03]} g6 {[%emt 0:00:02]} 6. Bg2 {[%emt 0:00:00]} Bg7 {[%emt 0:00:02]} 7. O-O {[%emt 0:00:02]} Nge7 {[%emt 0:00:01]} 8. c3 {[%emt 0:00:03]} O-O {[%emt 0:00:04]} 9. a3 {[%emt 0:00:03]} b6 {[%emt 0:00:03]} 10. b4 {[%emt 0:00:04]} h6 {[%emt 0:00:02]} 11. b5 {[%emt 0:00:41]} Na5 {[%emt 0:00:04]} 12. Nc4 {[%emt 0:00:22]} Nxc4 {[%emt 0:00:12]} 13. dxc4 {[%emt 0:00:01]} Be6 {[%emt 0:00:05]} 14. Qe2 {[%emt 0:00:21]} a6 {[%emt 0:00:02]} 15. Rd1 {[%emt 0:00:56]} Qd7 {[%emt 0:01:49]} 16. Rb1 {[%emt 0:02:03]} axb5 {[%emt 0:00:06]} 17. cxb5 {[%emt 0:00:50]} Ra4 {[%emt 0:00:06]} 18. Ne1 {[%emt 0:00:35]} Bc4 {[%emt 0:00:32]} 19. Qd2 {[%emt 0:00:17]} Rd8 {[%emt 0:00:11]} 20. Nc2 {[%emt 0:02:04]} Bxb5 {[%emt 0:00:33]} 21. c4 {[%emt 0:01:27]} Bxc4 {[%emt 0:00:15]} 22. Rxb6 {[%emt 0:00:01]} Nc6 {[%emt 0:00:35]} 23. Ne3 {[%emt 0:00:28]} Be6 {[%emt 0:00:13]} 24. Qb2 {[%emt 0:00:36]} Ra7 {[%emt 0:00:52]} 25. Nd5 {[%emt 0:00:22]} Kh7 {[%emt 0:01:07]} 26. Be3 {[%emt 0:01:33]} Nd4 {[%emt 0:00:15]} 27. Rb1 {[%emt 0:00:53]} Bxd5 {[%emt 0:00:09]} 28. exd5 {[%emt 0:00:03]} Rda8 {[%emt 0:00:12]} 29. Rb7 {[%emt 0:01:00]} Qa4 {[%emt 0:00:07]} 30. h4 {[%emt 0:00:19]} h5 {[%emt 0:00:14]} 31. Rxa7 {[%emt 0:01:01]} Qxa7 {[%emt 0:00:02]} 32. Be4 {[%emt 0:00:48]} f5 {[%emt 0:00:07]} 33. Bg2 {[%emt 0:00:07]} c4 {[%emt 0:02:20]} 34. Qb4 {[%emt 0:00:27]} c3 {[%emt 0:00:10]} 35. Qxd6 {[%emt 0:00:10]} c2 {[%emt 0:00:31]} 36. Ra1 {[%emt 0:00:06]} Qa4 {[%emt 0:00:12]} 37. Qc7 {[%emt 0:00:08]} Ra7 {[%emt 0:00:06]} 38. Qc8 {[%emt 0:00:05]} e4 {[%emt 0:00:11]} 39. Kh1 {[%emt 0:00:13]} 0-1